[Event "Titled Tuesday Blitz March 07 Early 2023"]
[White "Sjugirov, Sanan"]
[Black "Duda, Jan-Krzysztof"]
[WhiteFideId "4189302"]
[BlackFideId "1170546"]
[WhiteElo "2569"]
[BlackElo "2790"]
[Result "1-0"]
[Round "07"]
[TimeControl "180+2"]
[Date "2023.03.07"]
[WhiteClock "0:00:43"]
[BlackClock "0:00:59"]

1. e4 {[%clk 0:03:00]}  c5 {[%clk 0:02:58]} 2. Nf3 {[%clk 0:03:01]}  d6 {[%clk 0:02:59]} 3. d4 {[%clk 0:03:01]}  cxd4 {[%clk 0:02:59]} 4. Nxd4 {[%clk 0:03:01]}  Nf6 {[%clk 0:03:00]} 5. Nc3 {[%clk 0:03:02]}  a6 {[%clk 0:03:01]} 6. Be3 {[%clk 0:03:03]}  e5 {[%clk 0:02:59]} 7. Nf3 {[%clk 0:03:03]}  Qc7 {[%clk 0:02:57]} 8. a4 {[%clk 0:03:01]}  Be6 {[%clk 0:02:54]} 9. Be2 {[%clk 0:02:57]}  h6 {[%clk 0:02:51]} 10. O-O {[%clk 0:02:53]}  Nbd7 {[%clk 0:02:51]} 11. a5 {[%clk 0:02:51]}  Be7 {[%clk 0:02:50]} 12. Nd5 {[%clk 0:02:48]}  Nxd5 {[%clk 0:02:48]} 13. exd5 {[%clk 0:02:49]}  Bg4 {[%clk 0:02:49]} 14. Nd2 {[%clk 0:01:58]}  Bxe2 {[%clk 0:02:46]} 15. Qxe2 {[%clk 0:01:59]}  O-O {[%clk 0:02:33]} 16. Nc4 {[%clk 0:01:44]}  Rac8 {[%clk 0:02:30]} 17. b3 {[%clk 0:01:43]}  f5 {[%clk 0:02:28]} 18. f3 {[%clk 0:01:43]}  Qd8 {[%clk 0:01:55]} 19. Kh1 {[%clk 0:01:40]}  Qe8 {[%clk 0:01:55]} 20. f4 {[%clk 0:01:13]}  e4 {[%clk 0:01:37]} 21. g4 {[%clk 0:01:02]}  Nf6 {[%clk 0:01:19]} 22. gxf5 {[%clk 0:01:02]}  Nxd5 {[%clk 0:01:17]} 23. Bd4 {[%clk 0:01:02]}  Rxf5 {[%clk 0:00:59]} 24. Qxe4 {[%clk 0:00:44]}  Qd8 {[%clk 0:00:59]} 25. Qxf5 {[%clk 0:00:43]} 1-0


[Site "https://www.chess.com"]

[Event "Titled Tuesday Blitz March 07 Early 2023"]
[White "Gholami Orimi, Mahdi"]
[Black "Pranav, V"]
[WhiteFideId "12558486"]
[BlackFideId "25060783"]
[WhiteElo "2363"]
[BlackElo "2500"]
[Result "1/2-1/2"]
[Round "07"]
[TimeControl "180+2"]
[Date "2023.03.07"]
[WhiteClock "0:00:16"]
[BlackClock "0:00:04"]

1. d4 {[%clk 0:03:00]}  Nf6 {[%clk 0:02:59]} 2. c4 {[%clk 0:03:01]}  e6 {[%clk 0:03:00]} 3. Nc3 {[%clk 0:03:02]}  Bb4 {[%clk 0:03:00]} 4. e3 {[%clk 0:03:02]}  O-O {[%clk 0:03:00]} 5. Bd3 {[%clk 0:03:02]}  d5 {[%clk 0:03:01]} 6. cxd5 {[%clk 0:03:02]}  exd5 {[%clk 0:03:01]} 7. a3 {[%clk 0:03:02]}  Bd6 {[%clk 0:03:00]} 8. Qc2 {[%clk 0:03:03]}  b6 {[%clk 0:02:59]} 9. b4 {[%clk 0:03:01]}  Bb7 {[%clk 0:02:58]} 10. Nge2 {[%clk 0:02:56]}  Re8 {[%clk 0:02:58]} 11. b5 {[%clk 0:02:53]}  a6 {[%clk 0:02:51]} 12. Rb1 {[%clk 0:02:53]}  axb5 {[%clk 0:02:28]} 13. Nxb5 {[%clk 0:02:54]}  Ba6 {[%clk 0:02:29]} 14. O-O {[%clk 0:02:39]}  Bxb5 {[%clk 0:02:21]} 15. Bxb5 {[%clk 0:02:38]}  c6 {[%clk 0:02:15]} 16. Bd3 {[%clk 0:02:33]}  b5 {[%clk 0:02:09]} 17. Ra1 {[%clk 0:02:31]}  g6 {[%clk 0:02:01]} 18. h3 {[%clk 0:02:28]}  Qd7 {[%clk 0:01:58]} 19. a4 {[%clk 0:02:24]}  Na6 {[%clk 0:01:54]} 20. Bd2 {[%clk 0:02:23]}  b4 {[%clk 0:01:36]} 21. Nc1 {[%clk 0:02:17]}  Ne4 {[%clk 0:01:24]} 22. Nb3 {[%clk 0:02:17]}  Qe6 {[%clk 0:01:13]} 23. Bxe4 {[%clk 0:02:08]}  dxe4 {[%clk 0:01:12]} 24. Rfc1 {[%clk 0:02:08]}  Nc7 {[%clk 0:01:09]} 25. a5 {[%clk 0:01:39]}  Ra6 {[%clk 0:01:01]} 26. Qc4 {[%clk 0:01:32]}  Rb8 {[%clk 0:00:40]} 27. Qxe6 {[%clk 0:01:27]}  Nxe6 {[%clk 0:00:41]} 28. Rc4 {[%clk 0:01:28]}  Rb5 {[%clk 0:00:38]} 29. Rac1 {[%clk 0:01:24]}  Nd8 {[%clk 0:00:38]} 30. f3 {[%clk 0:01:21]}  exf3 {[%clk 0:00:34]} 31. gxf3 {[%clk 0:01:22]}  Kf8 {[%clk 0:00:20]} 32. e4 {[%clk 0:01:22]}  f6 {[%clk 0:00:20]} 33. Kf2 {[%clk 0:01:01]}  Ke8 {[%clk 0:00:20]} 34. Ke2 {[%clk 0:00:59]}  Kd7 {[%clk 0:00:20]} 35. Kd3 {[%clk 0:00:54]}  Nb7 {[%clk 0:00:19]} 36. Ra1 {[%clk 0:00:48]}  g5 {[%clk 0:00:07]} 37. Ra4 {[%clk 0:00:47]}  Nxa5 {[%clk 0:00:06]} 38. Nxa5 {[%clk 0:00:44]}  Rbxa5 {[%clk 0:00:06]} 39. Rxa5 {[%clk 0:00:45]}  Rxa5 {[%clk 0:00:07]} 40. Bxb4 {[%clk 0:00:45]}  Bxb4 {[%clk 0:00:07]} 41. Rxb4 {[%clk 0:00:45]}  Ra3+ {[%clk 0:00:08]} 42. Ke2 {[%clk 0:00:45]}  h5 {[%clk 0:00:08]} 43. h4 {[%clk 0:00:41]}  gxh4 {[%clk 0:00:08]} 44. Rb7+ {[%clk 0:00:42]}  Kd6 {[%clk 0:00:08]} 45. Rh7 {[%clk 0:00:43]}  h3 {[%clk 0:00:06]} 46. Rxh5 {[%clk 0:00:42]}  h2 {[%clk 0:00:06]} 47. Kf2 {[%clk 0:00:43]}  Rd3 {[%clk 0:00:06]} 48. Rxh2 {[%clk 0:00:38]}  Rxd4 {[%clk 0:00:06]} 49. Ke3 {[%clk 0:00:39]}  Ra4 {[%clk 0:00:06]} 50. Kf4 {[%clk 0:00:38]}  Ke6 {[%clk 0:00:06]} 51. Rh8 {[%clk 0:00:39]}  Ra7 {[%clk 0:00:05]} 52. Re8+ {[%clk 0:00:39]}  Re7 {[%clk 0:00:04]} 53. Rc8 {[%clk 0:00:40]}  Kd7 {[%clk 0:00:04]} 54. Ra8 {[%clk 0:00:40]}  Ke6 {[%clk 0:00:05]} 55. Rc8 {[%clk 0:00:41]}  Kd7 {[%clk 0:00:05]} 56. Ra8 {[%clk 0:00:35]}  Ke6 {[%clk 0:00:05]} 57. Ra6 {[%clk 0:00:34]}  Rc7 {[%clk 0:00:06]} 58. Rb6 {[%clk 0:00:35]}  Rc8 {[%clk 0:00:04]} 59. Rb7 {[%clk 0:00:34]}  c5 {[%clk 0:00:04]} 60. Rb6+ {[%clk 0:00:35]}  Ke7 {[%clk 0:00:04]} 61. Kf5 {[%clk 0:00:34]}  c4 {[%clk 0:00:05]} 62. Rb7+ {[%clk 0:00:33]}  Kd6 {[%clk 0:00:05]} 63. f4 {[%clk 0:00:19]}  c3 {[%clk 0:00:05]} 64. Rb6+ {[%clk 0:00:17]}  Ke7 {[%clk 0:00:04]} 65. Rb7+ {[%clk 0:00:17]}  Kd6 {[%clk 0:00:04]} 66. Rb6+ {[%clk 0:00:17]}  Rc6 {[%clk 0:00:04]} 67. e5+ {[%clk 0:00:16]}  fxe5 {[%clk 0:00:04]} 68. fxe5+ {[%clk 0:00:17]}  Kd5 {[%clk 0:00:04]} 69. Rb1 {[%clk 0:00:13]}  c2 {[%clk 0:00:04]} 70. Rc1 {[%clk 0:00:14]}  Rc8 {[%clk 0:00:04]} 71. e6 {[%clk 0:00:13]}  Rf8+ {[%clk 0:00:04]} 72. Kg6 {[%clk 0:00:14]}  Kxe6 {[%clk 0:00:03]} 73. Rxc2 {[%clk 0:00:14]}  Rg8+ {[%clk 0:00:03]} 74. Kh7 {[%clk 0:00:15]}  Re8 {[%clk 0:00:03]} 75. Re2+ {[%clk 0:00:15]}  Kd7 {[%clk 0:00:03]} 76. Rxe8 {[%clk 0:00:16]}  Kxe8 {[%clk 0:00:04]} 1/2-1/2


[Site "https://www.chess.com"]

[Event "Titled Tuesday Blitz March 07 Early 2023"]
[White "Terry, Renato"]
[Black "Bharath Subramaniyam H"]
[WhiteFideId "3803457"]
[BlackFideId "46634827"]
[WhiteElo "2579"]
[BlackElo "2395"]
[Result "1-0"]
[Round "07"]
[TimeControl "180+2"]
[Date "2023.03.07"]
[WhiteClock "0:00:06"]
[BlackClock "0:00:02"]

1. Nf3 {[%clk 0:03:00]}  c5 {[%clk 0:02:57]} 2. e3 {[%clk 0:03:00]}  Nf6 {[%clk 0:02:49]} 3. b3 {[%clk 0:03:00]}  g6 {[%clk 0:02:48]} 4. Bb2 {[%clk 0:03:01]}  Bg7 {[%clk 0:02:49]} 5. c4 {[%clk 0:03:00]}  O-O {[%clk 0:02:46]} 6. Be2 {[%clk 0:03:01]}  d6 {[%clk 0:02:46]} 7. O-O {[%clk 0:03:01]}  Nc6 {[%clk 0:02:43]} 8. d4 {[%clk 0:03:01]}  cxd4 {[%clk 0:02:42]} 9. Nxd4 {[%clk 0:03:01]}  Bd7 {[%clk 0:02:40]} 10. Nc3 {[%clk 0:03:01]}  Rc8 {[%clk 0:02:35]} 11. Bf3 {[%clk 0:02:45]}  a6 {[%clk 0:02:33]} 12. Rc1 {[%clk 0:02:42]}  Qb6 {[%clk 0:02:22]} 13. Qd2 {[%clk 0:02:21]}  Ne5 {[%clk 0:02:17]} 14. Be2 {[%clk 0:02:20]}  Rfd8 {[%clk 0:02:14]} 15. Rfd1 {[%clk 0:02:15]}  Qa5 {[%clk 0:02:00]} 16. h3 {[%clk 0:02:10]}  h5 {[%clk 0:01:58]} 17. Rc2 {[%clk 0:01:58]}  h4 {[%clk 0:01:53]} 18. Rdc1 {[%clk 0:01:31]}  g5 {[%clk 0:01:16]} 19. f3 {[%clk 0:01:27]}  Ng6 {[%clk 0:01:11]} 20. Bd3 {[%clk 0:01:20]}  Ne5 {[%clk 0:01:06]} 21. Bf1 {[%clk 0:01:20]}  e6 {[%clk 0:00:58]} 22. e4 {[%clk 0:01:13]}  Ng6 {[%clk 0:00:55]} 23. Nde2 {[%clk 0:00:54]}  Bc6 {[%clk 0:00:40]} 24. Nd1 {[%clk 0:00:54]}  Qxd2 {[%clk 0:00:32]} 25. Rxd2 {[%clk 0:00:55]}  Nh5 {[%clk 0:00:30]} 26. Ba3 {[%clk 0:00:47]}  Be5 {[%clk 0:00:28]} 27. Ne3 {[%clk 0:00:48]}  Ngf4 {[%clk 0:00:23]} 28. Nd4 {[%clk 0:00:48]}  Be8 {[%clk 0:00:18]} 29. Ng4 {[%clk 0:00:46]}  Bg7 {[%clk 0:00:17]} 30. Rcd1 {[%clk 0:00:45]}  Ng3 {[%clk 0:00:16]} 31. Ne2 {[%clk 0:00:40]}  Ngxe2+ {[%clk 0:00:14]} 32. Bxe2 {[%clk 0:00:41]}  d5 {[%clk 0:00:11]} 33. Be7 {[%clk 0:00:23]}  Rd7 {[%clk 0:00:09]} 34. Bxg5 {[%clk 0:00:23]}  Nxe2+ {[%clk 0:00:08]} 35. Rxe2 {[%clk 0:00:24]}  dxc4 {[%clk 0:00:08]} 36. Rxd7 {[%clk 0:00:23]}  Bxd7 {[%clk 0:00:09]} 37. bxc4 {[%clk 0:00:21]}  Rxc4 {[%clk 0:00:09]} 38. Rd2 {[%clk 0:00:10]}  Rd4 {[%clk 0:00:08]} 39. Rc2 {[%clk 0:00:09]}  Rd1+ {[%clk 0:00:08]} 40. Kh2 {[%clk 0:00:09]}  Kf8 {[%clk 0:00:07]} 41. Bxh4 {[%clk 0:00:08]}  Bd4 {[%clk 0:00:05]} 42. Bf6 {[%clk 0:00:07]}  Bg1+ {[%clk 0:00:05]} 43. Kg3 {[%clk 0:00:07]}  Ke8 {[%clk 0:00:02]} 44. Rc7 {[%clk 0:00:06]}  Bb6 {[%clk 0:00:02]} 45. Rxb7 {[%clk 0:00:06]} 1-0


[Site "https://www.chess.com"]

[Event "Titled Tuesday Blitz March 07 Early 2023"]
[White "Steinberg, Nitzan"]
[Black "Decuigniere, Tom"]
[WhiteFideId "2801795"]
[BlackFideId "26093820"]
[WhiteElo "2486"]
[BlackElo "2312"]
[Result "1/2-1/2"]
[Round "07"]
[TimeControl "180+2"]
[Date "2023.03.07"]
[WhiteClock "0:00:48"]
[BlackClock "0:00:58"]

1. e4 {[%clk 0:02:56]}  c5 {[%clk 0:02:59]} 2. Nf3 {[%clk 0:02:56]}  g6 {[%clk 0:02:59]} 3. Bc4 {[%clk 0:02:54]}  Bg7 {[%clk 0:02:59]} 4. c3 {[%clk 0:02:55]}  e6 {[%clk 0:02:58]} 5. d4 {[%clk 0:02:55]}  cxd4 {[%clk 0:02:59]} 6. Nxd4 {[%clk 0:02:55]}  d5 {[%clk 0:02:55]} 7. Bb5+ {[%clk 0:02:50]}  Bd7 {[%clk 0:02:53]} 8. exd5 {[%clk 0:02:48]}  exd5 {[%clk 0:02:50]} 9. O-O {[%clk 0:02:48]}  Ne7 {[%clk 0:02:46]} 10. Re1 {[%clk 0:02:46]}  O-O {[%clk 0:02:41]} 11. Bg5 {[%clk 0:02:44]}  Re8 {[%clk 0:02:17]} 12. Bxd7 {[%clk 0:02:30]}  Qxd7 {[%clk 0:02:01]} 13. Bxe7 {[%clk 0:02:17]}  Rxe7 {[%clk 0:02:00]} 14. Rxe7 {[%clk 0:02:16]}  Qxe7 {[%clk 0:02:01]} 15. Nf3 {[%clk 0:02:14]}  Nc6 {[%clk 0:01:58]} 16. Na3 {[%clk 0:02:14]}  Rd8 {[%clk 0:01:35]} 17. Nc2 {[%clk 0:02:05]}  Qc5 {[%clk 0:01:34]} 18. Ncd4 {[%clk 0:01:49]}  Nxd4 {[%clk 0:01:21]} 19. cxd4 {[%clk 0:01:48]}  Qb4 {[%clk 0:01:19]} 20. Qb3 {[%clk 0:01:39]}  Qxb3 {[%clk 0:01:09]} 21. axb3 {[%clk 0:01:40]}  Rc8 {[%clk 0:01:09]} 22. Kf1 {[%clk 0:01:01]}  a6 {[%clk 0:01:09]} 23. Re1 {[%clk 0:00:52]}  Bf6 {[%clk 0:01:06]} 24. g3 {[%clk 0:00:47]}  Rc2 {[%clk 0:01:01]} 25. Re2 {[%clk 0:00:47]}  Rc1+ {[%clk 0:00:57]} 26. Re1 {[%clk 0:00:48]}  Rc2 {[%clk 0:00:58]} 27. Re2 {[%clk 0:00:48]}  Rc1+ {[%clk 0:00:58]} 28. Re1 {[%clk 0:00:48]}  Rc2 {[%clk 0:00:58]} 1/2-1/2


[Site "https://www.chess.com"]

[Event "Titled Tuesday Blitz March 07 Early 2023"]
[White "EREBUNI91"]
[Black "Tabatabaei, M. Amin"]
[BlackFideId "12521213"]
[WhiteElo "2737"]
[BlackElo "2575"]
[Result "0-1"]
[Round "07"]
[TimeControl "180+2"]
[Date "2023.03.07"]
[WhiteClock "0:00:23"]
[BlackClock "0:00:31"]

1. e4 {[%clk 0:03:00]}  e5 {[%clk 0:02:57]} 2. Nf3 {[%clk 0:03:00]}  Nc6 {[%clk 0:02:57]} 3. Bb5 {[%clk 0:03:01]}  a6 {[%clk 0:02:57]} 4. Ba4 {[%clk 0:03:01]}  Nf6 {[%clk 0:02:57]} 5. O-O {[%clk 0:03:01]}  Nxe4 {[%clk 0:02:58]} 6. Re1 {[%clk 0:03:02]}  Nc5 {[%clk 0:02:58]} 7. Bxc6 {[%clk 0:03:02]}  dxc6 {[%clk 0:02:59]} 8. d4 {[%clk 0:03:02]}  Ne6 {[%clk 0:02:57]} 9. Nxe5 {[%clk 0:03:03]}  Be7 {[%clk 0:02:55]} 10. Be3 {[%clk 0:02:53]}  O-O {[%clk 0:02:54]} 11. c4 {[%clk 0:02:54]}  f6 {[%clk 0:02:54]} 12. Nf3 {[%clk 0:02:49]}  Ng5 {[%clk 0:02:54]} 13. h3 {[%clk 0:02:46]}  Nxf3+ {[%clk 0:02:51]} 14. Qxf3 {[%clk 0:02:47]}  Be6 {[%clk 0:02:51]} 15. b3 {[%clk 0:02:44]}  Qd7 {[%clk 0:02:51]} 16. Nd2 {[%clk 0:02:41]}  Rae8 {[%clk 0:02:50]} 17. Ne4 {[%clk 0:02:36]}  b6 {[%clk 0:02:50]} 18. Rad1 {[%clk 0:02:34]}  Bf5 {[%clk 0:02:51]} 19. Bf4 {[%clk 0:02:26]}  Bg6 {[%clk 0:02:42]} 20. Bg3 {[%clk 0:02:21]}  Bb4 {[%clk 0:02:39]} 21. Re3 {[%clk 0:02:13]}  f5 {[%clk 0:02:36]} 22. Nd2 {[%clk 0:02:07]}  f4 {[%clk 0:02:35]} 23. Bxf4 {[%clk 0:02:03]}  Bd6 {[%clk 0:02:06]} 24. g3 {[%clk 0:02:01]}  Qxh3 {[%clk 0:02:01]} 25. Rde1 {[%clk 0:01:51]}  Bxf4 {[%clk 0:01:37]} 26. Rxe8 {[%clk 0:01:48]}  Bxe8 {[%clk 0:01:37]} 27. gxf4 {[%clk 0:01:45]}  Qh4 {[%clk 0:01:13]} 28. Qg3 {[%clk 0:01:40]}  Qf6 {[%clk 0:01:12]} 29. Re5 {[%clk 0:01:38]}  Bg6 {[%clk 0:01:09]} 30. Ne4 {[%clk 0:01:35]}  Qxf4 {[%clk 0:01:07]} 31. Re7 {[%clk 0:01:00]}  Qxg3+ {[%clk 0:00:56]} 32. fxg3 {[%clk 0:01:01]}  Re8 {[%clk 0:00:57]} 33. Rxe8+ {[%clk 0:00:55]}  Bxe8 {[%clk 0:00:58]} 34. c5 {[%clk 0:00:56]}  Bg6 {[%clk 0:00:54]} 35. Ng5 {[%clk 0:00:51]}  Bf5 {[%clk 0:00:54]} 36. Nf3 {[%clk 0:00:51]}  Be4 {[%clk 0:00:41]} 37. Ne5 {[%clk 0:00:50]}  Bd5 {[%clk 0:00:41]} 38. Nd7 {[%clk 0:00:44]}  b5 {[%clk 0:00:39]} 39. b4 {[%clk 0:00:43]}  Bxa2 {[%clk 0:00:36]} 40. Nb8 {[%clk 0:00:43]}  Kf7 {[%clk 0:00:24]} 41. Nxa6 {[%clk 0:00:36]}  Ke6 {[%clk 0:00:23]} 42. Nxc7+ {[%clk 0:00:29]}  Kf5 {[%clk 0:00:24]} 43. Ne8 {[%clk 0:00:20]}  Ke4 {[%clk 0:00:24]} 44. Nxg7 {[%clk 0:00:20]}  Kxd4 {[%clk 0:00:25]} 45. Nf5+ {[%clk 0:00:16]}  Kc3 {[%clk 0:00:25]} 46. Ne7 {[%clk 0:00:16]}  Kxb4 {[%clk 0:00:25]} 47. Nxc6+ {[%clk 0:00:16]}  Kxc5 {[%clk 0:00:26]} 48. Ne5 {[%clk 0:00:17]}  b4 {[%clk 0:00:26]} 49. Nd3+ {[%clk 0:00:17]}  Kc4 {[%clk 0:00:27]} 50. Nxb4 {[%clk 0:00:18]}  Kxb4 {[%clk 0:00:28]} 51. Kf2 {[%clk 0:00:18]}  Kc5 {[%clk 0:00:28]} 52. Ke3 {[%clk 0:00:19]}  Kd6 {[%clk 0:00:29]} 53. Kf4 {[%clk 0:00:20]}  Ke6 {[%clk 0:00:29]} 54. Kg5 {[%clk 0:00:20]}  Kf7 {[%clk 0:00:30]} 55. Kh6 {[%clk 0:00:21]}  Bb1 {[%clk 0:00:30]} 56. g4 {[%clk 0:00:21]}  Bg6 {[%clk 0:00:31]} 57. g5 {[%clk 0:00:22]}  Ke6 {[%clk 0:00:30]} 58. Kg7 {[%clk 0:00:22]}  Kf5 {[%clk 0:00:31]} 59. Kh6 {[%clk 0:00:23]}  Kg4 {[%clk 0:00:31]} 0-1


[Site "https://www.chess.com"]

[Event "Titled Tuesday Blitz March 07 Early 2023"]
[White "De Silva, L M S T"]
[Black "Keymer, Vincent"]
[WhiteFideId "9953698"]
[BlackFideId "12940690"]
[WhiteElo "2403"]
[BlackElo "2651"]
[Result "0-1"]
[Round "07"]
[TimeControl "180+2"]
[Date "2023.03.07"]
[WhiteClock "0:00:01"]
[BlackClock "0:00:03"]

1. e4 {[%clk 0:03:00]}  c6 {[%clk 0:02:59]} 2. d4 {[%clk 0:03:00]}  d5 {[%clk 0:03:00]} 3. Nc3 {[%clk 0:03:00]}  dxe4 {[%clk 0:02:59]} 4. Nxe4 {[%clk 0:03:01]}  Nf6 {[%clk 0:03:00]} 5. Nxf6+ {[%clk 0:03:02]}  exf6 {[%clk 0:03:01]} 6. c3 {[%clk 0:03:02]}  Bd6 {[%clk 0:03:00]} 7. Bd3 {[%clk 0:03:03]}  O-O {[%clk 0:03:01]} 8. Qc2 {[%clk 0:03:04]}  Re8+ {[%clk 0:03:02]} 9. Ne2 {[%clk 0:03:04]}  h5 {[%clk 0:03:02]} 10. O-O {[%clk 0:03:04]}  h4 {[%clk 0:03:02]} 11. h3 {[%clk 0:03:04]}  Nd7 {[%clk 0:03:02]} 12. Bd2 {[%clk 0:03:04]}  Nf8 {[%clk 0:03:01]} 13. Rae1 {[%clk 0:03:05]}  Bd7 {[%clk 0:02:59]} 14. c4 {[%clk 0:03:02]}  Rc8 {[%clk 0:02:57]} 15. b3 {[%clk 0:03:00]}  Bb8 {[%clk 0:02:56]} 16. Qc1 {[%clk 0:02:16]}  Ne6 {[%clk 0:02:42]} 17. f4 {[%clk 0:02:05]}  Qc7 {[%clk 0:02:40]} 18. Qc2 {[%clk 0:01:50]}  g6 {[%clk 0:02:31]} 19. Be3 {[%clk 0:01:47]}  Ng7 {[%clk 0:02:10]} 20. Nc3 {[%clk 0:01:43]}  Bf5 {[%clk 0:01:56]} 21. Bd2 {[%clk 0:01:35]}  Qd6 {[%clk 0:01:53]} 22. Be3 {[%clk 0:00:35]}  Rxe3 {[%clk 0:01:30]} 23. Rxe3 {[%clk 0:00:36]}  Qxd4 {[%clk 0:01:31]} 24. Qf2 {[%clk 0:00:37]}  Rd8 {[%clk 0:00:52]} 25. Ne2 {[%clk 0:00:22]}  Qd7 {[%clk 0:00:44]} 26. Rd1 {[%clk 0:00:20]}  Qc8 {[%clk 0:00:25]} 27. Qe1 {[%clk 0:00:18]}  Bc7 {[%clk 0:00:22]} 28. c5 {[%clk 0:00:14]}  b6 {[%clk 0:00:19]} 29. b4 {[%clk 0:00:13]}  a5 {[%clk 0:00:18]} 30. a3 {[%clk 0:00:13]}  axb4 {[%clk 0:00:18]} 31. axb4 {[%clk 0:00:14]}  bxc5 {[%clk 0:00:18]} 32. bxc5 {[%clk 0:00:15]}  Rd5 {[%clk 0:00:18]} 33. Bxf5 {[%clk 0:00:13]}  Nxf5 {[%clk 0:00:12]} 34. Red3 {[%clk 0:00:09]}  Rxc5 {[%clk 0:00:07]} 35. Nd4 {[%clk 0:00:07]}  Bb6 {[%clk 0:00:03]} 36. Kh2 {[%clk 0:00:03]}  Rd5 {[%clk 0:00:02]} 37. Nxf5 {[%clk 0:00:03]}  Qxf5 {[%clk 0:00:03]} 38. Rxd5 {[%clk 0:00:03]}  Qxf4+ {[%clk 0:00:03]} 39. Kh1 {[%clk 0:00:01]}  cxd5 {[%clk 0:00:03]} 40. Rxd5 {[%clk 0:00:01]}  Bc7 {[%clk 0:00:03]} 0-1


[Site "https://www.chess.com"]

[Event "Titled Tuesday Blitz March 07 Early 2023"]
[White "Rustemov, Alexander"]
[Black "Leiva, Gianmarco"]
[WhiteFideId "4119002"]
[BlackFideId "3804399"]
[WhiteElo "2895"]
[BlackElo "2345"]
[Result "1-0"]
[Round "07"]
[TimeControl "180+2"]
[Date "2023.03.07"]
[WhiteClock "0:00:41"]
[BlackClock "0:00:02"]

1. d4 {[%clk 0:03:00]}  Nf6 {[%clk 0:03:00]} 2. c4 {[%clk 0:03:01]}  e6 {[%clk 0:03:00]} 3. Nf3 {[%clk 0:03:01]}  d5 {[%clk 0:03:01]} 4. Bg5 {[%clk 0:03:00]}  dxc4 {[%clk 0:02:35]} 5. Qa4+ {[%clk 0:02:57]}  Nbd7 {[%clk 0:02:30]} 6. Qxc4 {[%clk 0:02:56]}  a6 {[%clk 0:02:29]} 7. g3 {[%clk 0:02:47]}  b5 {[%clk 0:02:29]} 8. Qc6 {[%clk 0:02:45]}  Rb8 {[%clk 0:02:29]} 9. Bg2 {[%clk 0:02:41]}  Bb7 {[%clk 0:02:29]} 10. Qc2 {[%clk 0:02:39]}  Be7 {[%clk 0:02:24]} 11. O-O {[%clk 0:02:39]}  O-O {[%clk 0:02:23]} 12. Nbd2 {[%clk 0:02:33]}  c5 {[%clk 0:02:20]} 13. dxc5 {[%clk 0:02:30]}  Bxc5 {[%clk 0:02:18]} 14. Nb3 {[%clk 0:02:26]}  Rc8 {[%clk 0:02:00]} 15. Nxc5 {[%clk 0:02:24]}  Rxc5 {[%clk 0:02:01]} 16. Qb3 {[%clk 0:02:18]}  Bxf3 {[%clk 0:01:31]} 17. Bxf6 {[%clk 0:02:16]}  Qxf6 {[%clk 0:01:32]} 18. Bxf3 {[%clk 0:02:16]}  Ne5 {[%clk 0:01:32]} 19. Qa3 {[%clk 0:02:07]}  Nxf3+ {[%clk 0:01:32]} 20. exf3 {[%clk 0:02:07]}  Rc2 {[%clk 0:01:24]} 21. Qxa6 {[%clk 0:02:05]}  Qxf3 {[%clk 0:00:50]} 22. Qxb5 {[%clk 0:02:00]}  h5 {[%clk 0:00:36]} 23. Qb3 {[%clk 0:01:56]}  Qxb3 {[%clk 0:00:34]} 24. axb3 {[%clk 0:01:57]}  Rxb2 {[%clk 0:00:35]} 25. Rfb1 {[%clk 0:01:56]}  Rc2 {[%clk 0:00:19]} 26. Rc1 {[%clk 0:01:51]}  Rxc1+ {[%clk 0:00:14]} 27. Rxc1 {[%clk 0:01:50]}  Rb8 {[%clk 0:00:13]} 28. Rb1 {[%clk 0:01:50]}  Rb4 {[%clk 0:00:14]} 29. Kf1 {[%clk 0:01:50]}  g5 {[%clk 0:00:10]} 30. Ke2 {[%clk 0:01:50]}  h4 {[%clk 0:00:10]} 31. Kd3 {[%clk 0:01:50]}  hxg3 {[%clk 0:00:10]} 32. hxg3 {[%clk 0:01:50]}  Kg7 {[%clk 0:00:09]} 33. Kc3 {[%clk 0:01:51]}  Rb6 {[%clk 0:00:07]} 34. b4 {[%clk 0:01:51]}  Kf6 {[%clk 0:00:08]} 35. b5 {[%clk 0:01:51]}  Kf5 {[%clk 0:00:08]} 36. Rb4 {[%clk 0:01:40]}  Ke5 {[%clk 0:00:09]} 37. Kc4 {[%clk 0:01:39]}  Kd6 {[%clk 0:00:09]} 38. Rb2 {[%clk 0:01:32]}  Rb8 {[%clk 0:00:08]} 39. Rd2+ {[%clk 0:01:29]}  Ke5 {[%clk 0:00:07]} 40. Rb2 {[%clk 0:01:19]}  Rc8+ {[%clk 0:00:07]} 41. Kb4 {[%clk 0:01:20]}  f5 {[%clk 0:00:05]} 42. b6 {[%clk 0:01:19]}  f4 {[%clk 0:00:05]} 43. g4 {[%clk 0:01:06]}  Ke4 {[%clk 0:00:05]} 44. Rb3 {[%clk 0:01:04]}  f3 {[%clk 0:00:05]} 45. b7 {[%clk 0:01:00]}  Rb8 {[%clk 0:00:04]} 46. Kc5 {[%clk 0:01:01]}  e5 {[%clk 0:00:03]} 47. Re3+ {[%clk 0:00:52]}  Kf4 {[%clk 0:00:03]} 48. Kc6 {[%clk 0:00:53]}  Kxg4 {[%clk 0:00:02]} 49. Rxe5 {[%clk 0:00:53]}  Kf4 {[%clk 0:00:02]} 50. Re7 {[%clk 0:00:49]}  g4 {[%clk 0:00:02]} 51. Rg7 {[%clk 0:00:48]}  Ke4 {[%clk 0:00:02]} 52. Kc7 {[%clk 0:00:41]}  Rxb7+ {[%clk 0:00:02]} 53. Kxb7 {[%clk 0:00:42]}  Kd3 {[%clk 0:00:02]} 54. Re7 {[%clk 0:00:40]}  g3 {[%clk 0:00:02]} 55. fxg3 {[%clk 0:00:41]}  f2 {[%clk 0:00:02]} 56. Rf7 {[%clk 0:00:41]} 1-0


[Site "https://www.chess.com"]